fUST/lending_fUST_20250205
["ID","MTS","AMOUNT","RATE_DAILY","PERIOD"]
[351691047,1738739433633,-153.0,0.00015903,2]
[351691048,1738739433642,-153.0,0.00015903,2]
[351691049,1738739433653,-153.0,0.00015903,2]
[351691050,1738739433663,-153.0,0.00015903,2]
[351691051,1738739433673,-153.0,0.00015903,2]
[351691052,1738739433682,-153.0,0.00015903,2]
[351691053,1738739433692,-153.0,0.00015903,2]
[351691054,1738739433702,-153.0,0.00015903,2]
[351691055,1738739433711,-153.0,0.00015903,2]
[351691056,1738739433721,-153.0,0.00015903,2]
[351691057,1738739433730,-153.0,0.00015903,2]
[351691058,1738739433898,-153.0,0.00015903,2]
[351691059,1738739433907,-153.0,0.00015903,2]
[351691060,1738739433916,-153.0,0.00015903,2]
[351691061,1738739433926,-153.0,0.00015903,2]
[351691062,1738739433935,-153.0,0.00015903,2]
[351691063,1738739433945,-153.0,0.00015903,2]
[351691064,1738739433954,-153.0,0.00015903,2]
[351691065,1738739433964,-236.5,0.00015903,2]
[351691066,1738739433973,-151.0,0.00015903,2]
[351691067,1738739433982,-151.0,0.00015903,2]
[351691068,1738739433991,-151.0,0.00015903,2]
[351691069,1738739434000,-151.0,0.00015903,2]
[351691070,1738739434009,-151.0,0.00015903,2]
[351691071,1738739434018,-151.0,0.00015903,2]
[351691072,1738739434027,-151.0,0.00015903,2]
[351691073,1738739434036,-151.0,0.00015903,2]
[351691074,1738739434046,-151.0,0.00015903,2]
[351691075,1738739434056,-151.0,0.00015903,2]
[351691076,1738739434065,-151.0,0.00015903,2]
[351691077,1738739434075,-151.0,0.00015903,2]
[351691078,1738739434086,-151.0,0.00015903,2]
[351691079,1738739434096,-151.0,0.00015903,2]
[351691080,1738739434105,-151.0,0.00015903,2]
[351691081,1738739434115,-151.0,0.00015903,2]
[351691082,1738739434124,-151.0,0.00015903,2]
[351691083,1738739434134,-151.0,0.00015903,2]
[351691084,1738739434144,-151.0,0.00015903,2]
[351691085,1738739434153,-151.0,0.00015903,2]
[351691086,1738739434163,-301.55,0.00015903,2]
[351691087,1738739434173,-153.364521,0.00015912,5]
[351691088,1738739434182,-502.42776964,0.00015973,2]
[351691089,1738739434192,-534.14473143,0.00015973,2]
[351691090,1738739434201,-500.89806937,0.00015973,2]
[351691091,1738739434211,-500.0,0.00015973,2]
[351691092,1738739434220,-500.0,0.00015973,2]
[351691093,1738739434230,-269.64789247,0.00015973,2]
[351691094,1738739434240,-500.79202333,0.00015973,2]
[351691095,1738739434249,-500.0,0.00015973,2]
[351691096,1738739434259,-268.85106358,0.00015973,2]
[351691097,1738739434268,-159.76693928,0.00015973,2]
[351691098,1738739434278,-500.0,0.00015973,2]
[351691099,1738739434287,-500.0,0.00015973,2]
[351691100,1738739434297,-153.02975198,0.00015973,2]
[351691101,1738739434307,-250.75170192,0.00015973,2]
[351691102,1738739434316,-151.53411741,0.00015973,2]
[351691103,1738739434325,-500.0,0.00015973,2]
[351691104,1738739434335,-500.0,0.00015973,2]
[351691105,1738739434344,-500.0,0.00015973,2]
[351691106,1738739434354,-502.01173233,0.00015973,2]
[351691107,1738739434363,-500.0,0.00015989,2]
[351691108,1738739434372,-500.0,0.00015998,2]
[351691109,1738739434381,-500.0,0.00015998,2]
[351691110,1738739434391,-169.68006153,0.00015998,2]
[351691111,1738739434400,-500.0,0.00015998,2]
[351691112,1738739434410,-500.0,0.00015998,2]
[351691113,1738739434419,-500.0,0.00015998,2]
[351691114,1738739434428,-605.26150958,0.00015998,2]
[351691115,1738739434438,-500.0,0.00015998,2]
[351691116,1738739434447,-500.0,0.00015998,2]
[351691117,1738739434456,-500.0,0.00015998,2]
[351691118,1738739434465,-213.82246735,0.00015998,2]
[351691119,1738739434474,-500.0,0.00015998,2]
[351691120,1738739434483,-159.69388786,0.00015998,2]
[351691121,1738739434492,-500.0,0.00015998,2]
[351691122,1738739434501,-500.0,0.00015998,2]
[351691123,1738739434511,-245.57937529,0.00015998,2]
[351691124,1738739434521,-500.0,0.00015998,2]
[351691125,1738739434531,-500.0,0.00015998,2]
[351691126,1738739434540,-450.47019214,0.00015998,2]
[351691127,1738739434549,-500.0,0.00015998,2]
[351691128,1738739434559,-316.59602,0.00015998,2]
[351691129,1738739434574,-500.0,0.00015998,2]
[351691130,1738739434583,-500.0,0.00015998,2]
[351691131,1738739434592,-500.0,0.00015998,2]
[351691132,1738739434602,-500.0,0.00015998,2]
[351691133,1738739434614,-500.0,0.00015998,2]
[351691134,1738739434623,-500.0,0.00015998,2]
[351691135,1738739434633,-329.91056156,0.00015998,2]
[351691136,1738739434644,-500.0,0.00015998,2]
[351691137,1738739434654,-500.0,0.00015998,2]
[351691138,1738739434663,-500.0,0.00015998,2]
[351691139,1738739434680,-500.0,0.00015998,2]
[351691140,1738739434691,-500.0,0.00015998,2]
[351691141,1738739434700,-500.0,0.00015998,2]
[351691142,1738739434710,-500.0,0.00015998,2]
[351691143,1738739434719,-500.0,0.00015998,2]
[351691144,1738739434729,-500.0,0.00015998,2]
[351691145,1738739434739,-500.0,0.00015998,2]
[351691146,1738739434748,-500.0,0.00015998,2]
[351691147,1738739434758,-500.0,0.00015998,2]
[351691148,1738739434768,-500.0,0.00015998,2]
[351691149,1738739434777,-500.0,0.00015998,2]
[351691150,1738739434787,-500.0,0.00015998,2]
[351691151,1738739434796,-500.0,0.00015998,2]
[351691152,1738739434806,-500.0,0.00015998,2]
[351691153,1738739434816,-500.0,0.00015998,2]
[351691154,1738739434827,-500.0,0.00015998,2]
[351691155,1738739434836,-500.0,0.00015998,2]
[351691156,1738739434846,-500.0,0.00015998,2]
[351691157,1738739434855,-500.0,0.00015998,2]
[351691158,1738739434865,-500.0,0.00015998,2]
[351691159,1738739434874,-500.0,0.00015998,2]
[351691160,1738739434884,-500.0,0.00015998,2]
[351691161,1738739434894,-500.0,0.00015998,2]
[351691162,1738739434903,-500.0,0.00015998,2]
[351691163,1738739434913,-500.0,0.00015998,2]
[351691164,1738739434922,-500.0,0.00015998,2]
[351691165,1738739434931,-500.0,0.00015998,2]
[351691166,1738739434940,-500.0,0.00015998,2]
[351691167,1738739434949,-500.0,0.00015998,2]
[351691168,1738739434958,-500.0,0.00015998,2]
[351691169,1738739434968,-500.0,0.00015998,2]
[351691170,1738739434979,-500.0,0.00015998,2]
[351691171,1738739434988,-500.0,0.00015998,2]
[351691172,1738739434998,-500.0,0.00015998,2]
[351691173,1738739435007,-500.0,0.00015998,2]
[351691174,1738739435017,-271.84117589,0.00015998,2]
[351691175,1738739435027,-500.0,0.00015998,2]
[351691176,1738739435036,-500.0,0.00015998,2]
[351691177,1738739435045,-500.0,0.00015998,2]
[351691178,1738739435055,-650.0,0.00015998,2]
[351691179,1738739435064,-500.0,0.00015998,2]
[351691180,1738739435074,-500.0,0.00015998,2]
[351691181,1738739435084,-500.0,0.00015998,2]
[351691182,1738739435094,-500.0,0.00015998,2]
[351691183,1738739435104,-500.0,0.00015998,2]
[351691184,1738739435113,-151.0,0.00015999,2]
[351691185,1738739435123,-151.0,0.00015999,2]
[351691186,1738739435133,-757.934027,0.00015999,2]
[351691187,1738739435142,-757.934027,0.00015999,2]
[351691188,1738739435152,-757.934027,0.00015999,2]
[351691189,1738739435161,-757.934027,0.00015999,2]
[351691190,1738739435171,-757.934027,0.00015999,2]
[351691191,1738739435180,-757.934027,0.00015999,2]
[351691192,1738739435189,-757.934027,0.00015999,2]
[351691193,1738739435199,-757.934027,0.00015999,2]
[351691194,1738739435208,-757.934027,0.00015999,2]
[351691195,1738739435217,-757.934027,0.00015999,2]
[351691196,1738739435237,-510899.0178935,0.00015999,7]
[351691197,1738739435248,-137707.47509804,0.00016,15]
[351691198,1738739435266,-500.59501,0.00016,15]
[351691270,1738739443584,-28498.57851906,0.00016,15]
[351691271,1738739443653,-9831.8796,0.00016,15]
[351691272,1738739443719,-2515.1815835,0.00016,15]
[351691294,1738739550842,10000.0,0.00018,30]
[351691295,1738739553573,169.660479,0.00013973,2]
[351691297,1738739572235,6806.0,0.00018,30]
[351691299,1738739843425,500.0,0.00014164,2]
[351691300,1738739862033,165.741237,0.00013699,2]
[351691301,1738740178254,500.0,0.00014164,2]
[351691303,1738740251576,39472.91038412,0.00015,3]
[351691311,1738740430603,161.876091,0.00013973,2]
[351691312,1738740450572,1067.07,0.00018,30]
[351691313,1738740509034,162.81772187,0.00015,2]
[351691314,1738740522204,18224.44872789,0.00013,2]
[351691316,1738740523355,150.9999998,0.0002,120]
[351691406,1738740620442,250.0,0.0002,120]
[351691407,1738740625921,459.0,0.000204,120]
[351691441,1738740632892,-161.244,0.000152,2]
[351691442,1738740632902,-2148.756,0.000158,2]
[351691443,1738740632917,-4084.47019111,0.000158,2]
[351691444,1738740632926,-2000.0,0.000158,2]
[351691445,1738740632936,-2000.0,0.000158,3]
[351691446,1738740632946,-2000.0,0.000158,4]
[351691447,1738740632959,-2000.0,0.000158,5]
[351691448,1738740632968,-2000.0,0.000158,6]
[351691449,1738740632979,-2000.0,0.000158,7]
[351691450,1738740632993,-2000.0,0.000158,8]
[351691451,1738740633002,-2000.0,0.000158,9]
[351691452,1738740633011,-2000.0,0.000158,10]
[351691453,1738740633021,-153.0,0.000158,2]
[351691454,1738740633031,-354.6451938,0.000158,2]
[351691456,1738740633040,-425.9531212,0.000158,2]
[351691458,1738740633050,-308.9658464,0.000158,2]
[351691460,1738740633059,-154.4937493,0.000158,2]
[351691462,1738740633070,-354.6451938,0.000158,2]
[351691463,1738740633079,-215.6880554,0.000158,2]
[351691465,1738740633089,-153.0,0.000158,2]
[351691467,1738740633099,-321.53974328,0.000158,2]
[351691469,1738740633109,-154.4937493,0.000158,2]
[351691471,1738740633118,-215.6880554,0.000158,2]
[351691473,1738740633128,-153.0,0.000158,2]
[351691475,1738740633138,-354.6451938,0.000158,2]
[351691477,1738740633147,-215.6880554,0.000158,2]
[351691479,1738740633157,-154.8867877,0.000158,2]
[351691481,1738740633166,-154.4937493,0.000158,2]
[351691483,1738740633176,-354.302818,0.000158,2]
[351691486,1738740633185,-186.3915856,0.00015839,2]
[351691487,1738740633194,-13257.15227901,0.00015864,2]
[351691489,1738740633204,-2326.49376191,0.000159,2]
[351691492,1738740633213,-153.0,0.00015959,2]
[351691494,1738740633222,-153.0,0.00015959,2]
[351691495,1738740633232,-153.0,0.00015959,2]
[351691498,1738740633241,-153.0,0.00015959,2]
[351691499,1738740633412,-153.0,0.00015959,2]
[351691500,1738740633428,-153.0,0.00015959,2]
[351691501,1738740633437,-153.0,0.00015959,2]
[351691502,1738740633447,-153.0,0.00015959,2]
[351691503,1738740633456,-153.0,0.00015959,2]
[351691504,1738740633466,-153.0,0.00015959,2]
[351691505,1738740633475,-153.0,0.00015959,2]
[351691506,1738740633484,-153.0,0.00015959,2]
[351691507,1738740633494,-153.0,0.00015959,2]
[351691508,1738740633503,-153.0,0.00015959,2]
[351691509,1738740633513,-153.0,0.00015959,2]
[351691510,1738740633521,-153.0,0.00015959,2]
[351691511,1738740633531,-153.0,0.00015959,2]
[351691512,1738740633540,-153.0,0.00015959,2]
[351691513,1738740633550,-153.0,0.00015959,2]
[351691514,1738740633559,-153.0,0.00015959,2]
[351691515,1738740633570,-153.0,0.00015959,2]
[351691516,1738740633579,-153.0,0.00015959,2]
[351691517,1738740633588,-153.0,0.00015959,2]
[351691518,1738740633598,-500.0,0.00015973,2]
[351691519,1738740633608,-500.0,0.00015973,2]
[351691520,1738740633618,-267.98407509,0.00015973,2]
[351691521,1738740633639,-501.19233727,0.00015973,2]
[351691522,1738740633650,-502.62444838,0.00015973,2]
[351691523,1738740633660,-500.0,0.00015973,2]
[351691524,1738740633670,-242.17752481,0.00015973,2]
[351691525,1738740633680,-500.0,0.00015973,2]
[351691526,1738740633690,-238.46810731,0.00015973,2]
[351691527,1738740633700,-152.0,0.00015992,2]
[351691528,1738740633710,-9553.68748159,0.00015993,2]
[351691529,1738740633720,-1281.03941102,0.00015998,2]
[351691530,1738740633730,-160.0,0.00015999,2]
[351691531,1738740633740,-500.0,0.00015999,2]
[351691532,1738740633750,-500.0,0.00015999,2]
[351691533,1738740633760,-468.77604307,0.00015999,2]
[351691534,1738740633771,-500.0,0.00015999,2]
[351691535,1738740633780,-373.68305671,0.00015999,2]
[351691536,1738740633791,-500.0,0.00015999,2]
[351691537,1738740633800,-500.0,0.00015999,2]
[351691538,1738740633811,-500.0,0.00015999,2]
[351691539,1738740633822,-500.0,0.00015999,2]
[351691540,1738740633832,-500.0,0.00015999,2]
[351691541,1738740633842,-272.27446579,0.00015999,2]
[351691542,1738740633852,-500.0,0.00015999,2]
[351691543,1738740633862,-500.0,0.00015999,2]
[351691544,1738740633871,-500.0,0.00015999,2]
[351691545,1738740633881,-442.18411759,0.00015999,2]
[351691546,1738740633891,-225.75277445,0.00015999,2]
[351691547,1738740633901,-634891.49434585,0.00016,15]
[351691548,1738740633916,-2193.05431087,0.00016,2]
[351691549,1738740633926,-3657.11172496,0.00016,2]
[351691550,1738740633936,-1568.3455759,0.00016,2]
[351691551,1738740633946,-1678.8,0.00016,2]
[351691552,1738740633957,-4000.00000199,0.00016,2]
[351691553,1738740633967,-158.8326848,0.00016,2]
[351691554,1738740633977,-23873.68437315,0.00016,2]
[351691555,1738740633987,-6127.11252974,0.00016,2]
[351691556,1738740633997,-2000.0,0.00016,2]
[351691557,1738740634007,-151.0,0.00016,2]
[351691558,1738740634017,-151.0,0.00016,2]
[351691559,1738740634026,-151.0,0.00016,2]
[351691560,1738740634036,-151.0,0.00016,2]
[351691561,1738740634046,-151.0,0.00016,2]
[351691562,1738740634056,-226.59296923,0.00016,2]
[351691563,1738740634067,-1000.0,0.00016,3]
[351691564,1738740634077,-612084.27,0.00016,15]
[351691565,1738740634087,-3000.0,0.00016,2]
[351691566,1738740634097,-151.0,0.00016,2]
[351691567,1738740634107,-151.0,0.00016,2]
[351691568,1738740634116,-151.0,0.00016,2]
[351691569,1738740634126,-151.0,0.00016,2]
[351691570,1738740634136,-151.0,0.00016,2]
[351691571,1738740634145,-151.0,0.00016,2]
[351691572,1738740634155,-151.0,0.00016,2]
[351691573,1738740634166,-151.0,0.00016,2]
[351691574,1738740634175,-151.0,0.00016,2]
[351691575,1738740634185,-151.0,0.00016,2]
[351691576,1738740634195,-2000.0,0.00016,2]
[351691577,1738740634205,-1009.0,0.00016,6]
[351691578,1738740634215,-151.0,0.00016,2]
[351691579,1738740634225,-151.0,0.00016,2]
[351691580,1738740634235,-151.0,0.00016,2]
[351691581,1738740634245,-151.0,0.00016,2]
[351691582,1738740634255,-151.0,0.00016,2]
[351691583,1738740634265,-151.0,0.00016,2]
[351691584,1738740634275,-151.0,0.00016,2]
[351691585,1738740634284,-151.0,0.00016,2]
[351691586,1738740634294,-151.0,0.00016,2]
[351691587,1738740634304,-151.0,0.00016,2]
[351691588,1738740634314,-5357.19,0.00016,2]
[351691589,1738740634324,-151.0,0.00016,2]
[351691590,1738740634335,-151.0,0.00016,2]
[351691591,1738740634344,-151.0,0.00016,2]
[351691592,1738740634354,-151.0,0.00016,2]
[351691593,1738740634364,-151.0,0.00016,2]
[351691594,1738740634374,-151.0,0.00016,2]
[351691595,1738740634384,-151.0,0.00016,2]
[351691596,1738740634394,-151.0,0.00016,2]
[351691597,1738740634404,-151.0,0.00016,2]
[351691598,1738740634414,-151.0,0.00016,2]
[351691599,1738740634424,-7438.69753278,0.00016,2]
[351691600,1738740634434,-151.0,0.00016,2]
[351691601,1738740634444,-151.0,0.00016,2]
[351691602,1738740634455,-151.0,0.00016,2]
[351691603,1738740634465,-151.0,0.00016,2]
[351691604,1738740634474,-151.0,0.00016,2]
[351691605,1738740634483,-151.0,0.00016,2]
[351691606,1738740634493,-151.0,0.00016,2]
[351691607,1738740634503,-151.0,0.00016,2]
[351691608,1738740634514,-151.0,0.00016,2]
[351691609,1738740634523,-151.0,0.00016,2]
[351691610,1738740634533,-430.5886292,0.00016,2]
[351691611,1738740634541,-154.4937493,0.00016,2]
[351691612,1738740634550,-361.0696506,0.00016,2]
[351691613,1738740634559,-306.6196041,0.00016,2]
[351691614,1738740634569,-154.4475723,0.00016,2]
[351691615,1738740634578,-358.1452365,0.00016,2]
[351691616,1738740634588,-154.4937493,0.00016,2]
[351691617,1738740634598,-215.6880554,0.00016,2]
[351691618,1738740634607,-154.4937493,0.00016,2]
[351691619,1738740634617,-353.5576756,0.00016,2]
[351691620,1738740634627,-215.6880554,0.00016,2]
[351691621,1738740634636,-151.0,0.00016,2]
[351691622,1738740634646,-151.0,0.00016,2]
[351691623,1738740634656,-151.0,0.00016,2]
[351691624,1738740634666,-151.0,0.00016,2]
[351691625,1738740634676,-151.0,0.00016,2]
[351691626,1738740634686,-151.0,0.00016,2]
[351691627,1738740634696,-151.0,0.00016,2]
[351691628,1738740634706,-151.0,0.00016,2]
[351691629,1738740634716,-151.0,0.00016,2]
[351691630,1738740634726,-151.0,0.00016,2]
[351691631,1738740634736,-500.0,0.00016,2]
[351691632,1738740634745,-215.6880554,0.00016,2]
[351691633,1738740634755,-154.4937493,0.00016,2]
[351691634,1738740634764,-708.9892088,0.00016,2]
[351691635,1738740634774,-215.6880554,0.00016,2]
[351691636,1738740634784,-308.9874986,0.00016,2]
[351691637,1738740634793,-354.5958847,0.00016,2]
[351691638,1738740634803,-215.6880554,0.00016,2]
[351691639,1738740634813,-154.4937493,0.00016,2]
[351691640,1738740634822,-354.5958847,0.00016,2]
[351691641,1738740634832,-227.1064186,0.00016,2]
[351691642,1738740634841,-212.0643352,0.00016,2]
[351691643,1738740634851,-154.4937493,0.00016,2]
[351691644,1738740634861,-354.5958847,0.00016,2]
[351691645,1738740634870,-215.6880554,0.00016,2]
[351691646,1738740634880,-500.0,0.00016,2]
[351691647,1738740634890,-151.0,0.00016,2]
[351691648,1738740634900,-151.0,0.00016,2]
[351691649,1738740634913,-151.0,0.00016,2]
[351691650,1738740634922,-151.0,0.00016,2]
[351691651,1738740634932,-151.0,0.00016,2]
[351691652,1738740634943,-151.0,0.00016,2]
[351691653,1738740634953,-151.0,0.00016,2]
[351691654,1738740634962,-151.0,0.00016,2]
[351691655,1738740634972,-151.0,0.00016,2]
[351691656,1738740634982,-151.0,0.00016,2]
[351691657,1738740634995,-1000.0,0.00016,15]
[351691658,1738740635006,-500.0,0.00016,2]
[351691659,1738740635015,-1150.0,0.00016,2]
[351691660,1738740635024,-150.32919194,0.00016,2]
[351691661,1738740635034,-500.0,0.00016,2]
[351691662,1738740635043,-500.0,0.00016,2]
[351691663,1738740635053,-1198.0,0.00016,2]
[351691664,1738740635064,-3722.19843858,0.00016,2]
[351691665,1738740635075,-3722.19843839,0.00016003,2]
[351691666,1738740635085,-3000.0,0.0001601,2]
[351691667,1738740635094,-321.53974321,0.00016014,2]
[351691668,1738740635104,-3000.0,0.0001602,2]
[351691669,1738740635113,-500.0,0.00016027,2]
[351691670,1738740635123,-3000.0,0.0001603,2]
[351691671,1738740635132,-3000.0,0.0001604,2]
[351691672,1738740635142,-3000.0,0.0001605,2]
[351691673,1738740635152,-500.0,0.00016054,2]
[351691674,1738740635162,-3000.0,0.0001606,2]
[351691675,1738740635171,-3000.0,0.0001607,2]
[351691676,1738740635181,-791.38458894,0.00016076,2]
[351691677,1738740635191,-3000.0,0.0001608,2]
[351691678,1738740635200,-500.0,0.00016081,2]
[351691679,1738740635210,-3000.0,0.0001609,2]
[351691680,1738740635219,-255.0,0.000161,2]
[351691681,1738740635230,-261.61,0.000161,2]
[351691682,1738740635240,-3000.0,0.000161,2]
[351691683,1738740635251,-614.7148715,0.000161,2]
[351691684,1738740635261,-708.4828073,0.000161,2]
[351691685,1738740635270,-218.2978693,0.000161,2]
[351691686,1738740635280,-713.5309705,0.000161,2]
[351691687,1738740635290,-154.4937493,0.000161,2]
[351691688,1738740635300,-154.4937493,0.000161,2]
[351691689,1738740635309,-215.6880554,0.000161,2]
[351691690,1738740635321,-156.3783882,0.000161,2]
[351691691,1738740635331,-3722.19843839,0.00016107,2]
[351691692,1738740635341,-500.0,0.00016109,2]
[351691693,1738740635350,-3000.0,0.0001611,2]
[351691694,1738740635360,-3000.0,0.0001612,2]
[351691695,1738740635370,-2326.49376183,0.00016122,2]
[351691696,1738740635380,-3000.0,0.0001613,2]
[351691697,1738740635389,-500.0,0.00016136,2]
[351691698,1738740635399,-500.0,0.00016136,2]
[351691699,1738740635408,-3000.0,0.0001614,2]
[351691700,1738740635419,-3000.0,0.0001615,2]
[351691701,1738740635428,-3000.0,0.0001616,2]
[351691702,1738740635438,-500.0,0.00016164,2]
[351691703,1738740635448,-499.0,0.00016164,2]
[351691704,1738740635457,-3000.0,0.0001617,2]
[351691705,1738740635467,-791.38458894,0.00016176,2]
[351691706,1738740635476,-3000.0,0.0001618,2]
[351691707,1738740635486,-160.0,0.00016186,7]
[351691708,1738740635495,-3000.0,0.0001619,2]
[351691709,1738740635504,-500.0,0.00016191,2]
[351691710,1738740635514,-151.25119173,0.00016197,2]
[351691711,1738740635523,-3000.0,0.000162,2]
[351691712,1738740635533,-3000.0,0.0001621,2]
[351691713,1738740635541,-3722.19843839,0.0001621,2]
[351691714,1738740635550,-500.0,0.00016218,2]
[351691715,1738740635560,-3000.0,0.0001622,2]
[351691716,1738740635573,-321.53974321,0.00016228,2]
[351691717,1738740635583,-3000.0,0.0001623,2]
[351691718,1738740635592,-3000.0,0.0001624,2]
[351691719,1738740635602,-500.0,0.00016246,2]
[351691720,1738740635612,-3000.0,0.0001625,2]
[351691721,1738740635622,-3000.0,0.0001626,2]
[351691722,1738740635632,-3000.0,0.0001627,2]
[351691723,1738740635641,-500.0,0.00016273,2]
[351691724,1738740635651,-500.0,0.00016273,2]
[351691725,1738740635662,-500.0,0.00016274,2]
[351691726,1738740635671,-693.58630452,0.00016274,2]
[351691727,1738740635681,-150.86618491,0.00016274,2]
[351691728,1738740635691,-865.78448536,0.00016274,2]
[351691729,1738740635700,-1150.0,0.00016274,2]
[351691730,1738740635710,-500.0,0.00016274,2]
[351691731,1738740635719,-500.53508894,0.00016274,2]
[351691732,1738740635729,-791.38458894,0.00016276,2]
[351691733,1738740635738,-3000.0,0.0001628,2]
[351691734,1738740635748,-3000.0,0.0001629,2]
[351691735,1738740635757,-504.22935577,0.000163,2]
[351691736,1738740635767,-3000.0,0.000163,2]
[351691737,1738740635776,-500.0,0.00016301,2]
[351691738,1738740635785,-3000.0,0.0001631,2]
[351691739,1738740635795,-153.0,0.00016311,2]
[351691740,1738740635804,-153.0,0.00016311,2]
[351691741,1738740635813,-153.0,0.00016311,2]
[351691742,1738740635826,-153.0,0.00016311,2]
[351691743,1738740635835,-153.0,0.00016311,2]
[351691744,1738740635845,-153.0,0.00016311,2]
[351691745,1738740635854,-153.0,0.00016311,2]
[351691746,1738740635863,-153.0,0.00016311,2]
[351691747,1738740635872,-153.0,0.00016311,2]
[351691748,1738740635882,-153.0,0.00016311,2]
[351691749,1738740635891,-153.0,0.00016311,2]
[351691750,1738740635902,-153.0,0.00016311,2]
[351691751,1738740635914,-153.0,0.00016311,2]
[351691752,1738740635923,-153.0,0.00016311,2]
[351691753,1738740635933,-153.0,0.00016311,2]
[351691754,1738740636080,-153.0,0.00016311,2]
[351691755,1738740636091,-153.0,0.00016311,2]
[351691756,1738740636100,-153.0,0.00016311,2]
[351691757,1738740636110,-153.0,0.00016311,2]
[351691758,1738740636120,-153.0,0.00016311,2]
[351691759,1738740636130,-153.0,0.00016311,2]
[351691760,1738740636139,-153.0,0.00016311,2]
[351691761,1738740636150,-153.0,0.00016311,2]
[351691762,1738740636160,-153.0,0.00016311,2]
[351691763,1738740636169,-153.0,0.00016311,2]
[351691764,1738740636178,-153.0,0.00016311,2]
[351691765,1738740636188,-153.0,0.00016311,2]
[351691766,1738740636198,-153.0,0.00016311,2]
[351691767,1738740636207,-153.0,0.00016311,2]
[351691768,1738740636216,-153.0,0.00016311,2]
[351691769,1738740636226,-153.0,0.00016314,2]
[351691770,1738740636235,-3722.19843839,0.00016314,2]
[351691771,1738740636245,-3000.0,0.0001632,2]
[351691772,1738740636254,-500.0,0.00016328,2]
[351691773,1738740636264,-3000.0,0.0001633,2]
[351691774,1738740636274,-3000.0,0.00016338,2]
[351691775,1738740636283,-3000.0,0.0001634,2]
[351691776,1738740636293,-2326.49376183,0.00016344,2]
[351691777,1738740636302,-3000.0,0.0001635,2]
[351691778,1738740636312,-192.0,0.00016352,2]
[351691779,1738740636323,-537.69173335,0.00016355,2]
[351691780,1738740636333,-3000.0,0.0001636,2]
[351691781,1738740636342,-3518.306573,0.0001636,2]
[351691782,1738740636352,-3518.306573,0.0001636,2]
[351691783,1738740636361,-187.261947,0.0001636,2]
[351691784,1738740636370,-187.261947,0.0001636,2]
[351691785,1738740636379,-3000.0,0.0001637,2]
[351691786,1738740636388,-791.38458894,0.00016376,2]
[351691787,1738740636397,-3000.0,0.0001638,2]
[351691788,1738740636407,-151.0,0.0001638,2]
[351691789,1738740636417,-5108.106261,0.0001638,2]
[351691790,1738740636427,-5108.106261,0.0001638,2]
[351691791,1738740636440,-188.077543,0.00016381,2]
[351691792,1738740636450,-188.077543,0.00016381,2]
[351691793,1738740636460,-151.0,0.00016381,2]